Workbook

Sheet faktura
B2: Naziv: | C2: =Podesavanja!B2 -> MOJA FIRMA | G2: Tekući račun: | I2: =Podesavanja!B7 -> 12345654879
A3: =Podesavanja!B17 -> 1 | B3: Adresa | C3: =Podesavanja!B3 -> Moja ulica bb | G3: MB broj: | I3: =Podesavanja!B6 -> 98765432112
B4: Mjesto | C4: =Podesavanja!B4 -> Moj Grad | G4: Telefon: | I4: =Podesavanja!B7 -> 12345654879
B5: PDV br: | C5: =Podesavanja!B5 -> 123123123123
B8: 1
H9: Datum računa:
B10: Naziv: | C10: =IF(B8>0,(VLOOKUP(B8,kupci!$A$2:$G$1000,2,)),) -> PROBNI KUPAC
B11: Adresa: | C11: =IF(B8>0,(VLOOKUP(B8,kupci!$A$2:$G$1000,4,)),) -> Gore Dole | H11: Datum dospjeća: | I11: =I9+Podesavanja!B12 -> 1900-01-10
B12: Mjesto: | C12: =IF(B8>0,(VLOOKUP(B8,kupci!$A$2:$G$1000,5,)),) -> NEKI GRAD
B13: PDV br: | C13: =IF(B8>0,(VLOOKUP(B8,kupci!$A$2:$G$1000,3,)),) -> 123456789 | H13: Način plaćanja: | I13: =Podesavanja!B13 -> Virman
B14: Tel: | C14: =IF(B8>0,(VLOOKUP(B8,kupci!$A$2:$G$1000,6,)),) -> 0038730256457
B15: Fax: | C15: =IF(B8>0,(VLOOKUP(B8,kupci!$A$2:$G$1000,7,)),) -> 00387653154 | H15: Mjesto izdavanja: | I15: =Podesavanja!B4 -> Moj Grad
C19: Faktura br: | D19: =A3 -> 1 | E19: - | F19: 2012
G20: Broj fiskalnog računa
G22: PDV
B23: R. br. | C23: Naziv proizvoda / usluge | D23: Šifra | E23: Kol. | F23: =IF(Podesavanja!B14=1,"Cijena bez PDV","Cijena sa PDV") -> Cijena bez PDV | G23: =Podesavanja!B10 -> 0.17 | H23: =IF(Podesavanja!B14=1,"Cijena sa PDV","Cijena bez PDV") -> Cijena sa PDV | I23: Ukupan iznos
C25: =IF(D25="","",VLOOKUP(D25,artikli!$A$2:$C$65536,2,FALSE)) -> Kruška | D25: 22 | E25: 1 | F25: =IF(D25="",0,VLOOKUP(D25,artikli!$A$2:$C$65536,3,FALSE)) -> 180 | G25: =IF(Podesavanja!B14=1,E25*F25*Podesavanja!B10,E25*F25*Podesavanja!B11) -> 30.6 | H25: =IF(Podesavanja!B14=1,E25*F25+G25,IF(Podesavanja!B14=2,E25*F25-(E25*F25*Podesavanja!B11))) -> 210.6 | I25: =IF(Podesavanja!B14=1,E25*F25+G25,IF(Podesavanja!B14=2,E25*F25)) -> 210.6
C26: =IF(D26="","",VLOOKUP(D26,artikli!$A$2:$C$65536,2,FALSE)) ->  | F26: =IF(D26="",0,VLOOKUP(D26,artikli!$A$2:$C$65536,3,FALSE)) -> 0 | G26: =IF(Podesavanja!B14=1,E26*F26*Podesavanja!B10,E26*F26*Podesavanja!B11) -> 0 | H26: =IF(Podesavanja!B14=1,E26*F26+G26,IF(Podesavanja!B14=2,E26*F26-(E26*F26*Podesavanja!B11))) -> 0 | I26: =IF(Podesavanja!B14=1,E26*F26+G26,IF(Podesavanja!B14=2,E26*F26)) -> 0
C27: =IF(D27="","",VLOOKUP(D27,artikli!$A$2:$C$65536,2,FALSE)) ->  | F27: =IF(D27="",0,VLOOKUP(D27,artikli!$A$2:$C$65536,3,FALSE)) -> 0 | G27: =IF(Podesavanja!B14=1,E27*F27*Podesavanja!B10,E27*F27*Podesavanja!B11) -> 0 | H27: =IF(Podesavanja!B14=1,E27*F27+G27,IF(Podesavanja!B14=2,E27*F27-(E27*F27*Podesavanja!B11))) -> 0 | I27: =IF(Podesavanja!B14=1,E27*F27+G27,IF(Podesavanja!B14=2,E27*F27)) -> 0
C28: =IF(D28="","",VLOOKUP(D28,artikli!$A$2:$C$65536,2,FALSE)) ->  | F28: =IF(D28="",0,VLOOKUP(D28,artikli!$A$2:$C$65536,3,FALSE)) -> 0 | G28: =IF(Podesavanja!B14=1,E28*F28*Podesavanja!B10,E28*F28*Podesavanja!B11) -> 0 | H28: =IF(Podesavanja!B14=1,E28*F28+G28,IF(Podesavanja!B14=2,E28*F28-(E28*F28*Podesavanja!B11))) -> 0 | I28: =IF(Podesavanja!B14=1,E28*F28+G28,IF(Podesavanja!B14=2,E28*F28)) -> 0
C29: =IF(D29="","",VLOOKUP(D29,artikli!$A$2:$C$65536,2,FALSE)) ->  | F29: =IF(D29="",0,VLOOKUP(D29,artikli!$A$2:$C$65536,3,FALSE)) -> 0 | G29: =IF(Podesavanja!B14=1,E29*F29*Podesavanja!B10,E29*F29*Podesavanja!B11) -> 0 | H29: =IF(Podesavanja!B14=1,E29*F29+G29,IF(Podesavanja!B14=2,E29*F29-(E29*F29*Podesavanja!B11))) -> 0 | I29: =IF(Podesavanja!B14=1,E29*F29+G29,IF(Podesavanja!B14=2,E29*F29)) -> 0
C30: =IF(D30="","",VLOOKUP(D30,artikli!$A$2:$C$65536,2,FALSE)) ->  | F30: =IF(D30="",0,VLOOKUP(D30,artikli!$A$2:$C$65536,3,FALSE)) -> 0 | G30: =IF(Podesavanja!B14=1,E30*F30*Podesavanja!B10,E30*F30*Podesavanja!B11) -> 0 | H30: =IF(Podesavanja!B14=1,E30*F30+G30,IF(Podesavanja!B14=2,E30*F30-(E30*F30*Podesavanja!B11))) -> 0 | I30: =IF(Podesavanja!B14=1,E30*F30+G30,IF(Podesavanja!B14=2,E30*F30)) -> 0
C31: =IF(D31="","",VLOOKUP(D31,artikli!$A$2:$C$65536,2,FALSE)) ->  | F31: =IF(D31="",0,VLOOKUP(D31,artikli!$A$2:$C$65536,3,FALSE)) -> 0 | G31: =IF(Podesavanja!B14=1,E31*F31*Podesavanja!B10,E31*F31*Podesavanja!B11) -> 0 | H31: =IF(Podesavanja!B14=1,E31*F31+G31,IF(Podesavanja!B14=2,E31*F31-(E31*F31*Podesavanja!B11))) -> 0 | I31: =IF(Podesavanja!B14=1,E31*F31+G31,IF(Podesavanja!B14=2,E31*F31)) -> 0
C32: =IF(D32="","",VLOOKUP(D32,artikli!$A$2:$C$65536,2,FALSE)) ->  | F32: =IF(D32="",0,VLOOKUP(D32,artikli!$A$2:$C$65536,3,FALSE)) -> 0 | G32: =IF(Podesavanja!B14=1,E32*F32*Podesavanja!B10,E32*F32*Podesavanja!B11) -> 0 | H32: =IF(Podesavanja!B14=1,E32*F32+G32,IF(Podesavanja!B14=2,E32*F32-(E32*F32*Podesavanja!B11))) -> 0 | I32: =IF(Podesavanja!B14=1,E32*F32+G32,IF(Podesavanja!B14=2,E32*F32)) -> 0
C33: =IF(D33="","",VLOOKUP(D33,artikli!$A$2:$C$65536,2,FALSE)) ->  | F33: =IF(D33="",0,VLOOKUP(D33,artikli!$A$2:$C$65536,3,FALSE)) -> 0 | G33: =IF(Podesavanja!B14=1,E33*F33*Podesavanja!B10,E33*F33*Podesavanja!B11) -> 0 | H33: =IF(Podesavanja!B14=1,E33*F33+G33,IF(Podesavanja!B14=2,E33*F33-(E33*F33*Podesavanja!B11))) -> 0 | I33: =IF(Podesavanja!B14=1,E33*F33+G33,IF(Podesavanja!B14=2,E33*F33)) -> 0
C34: =IF(D34="","",VLOOKUP(D34,artikli!$A$2:$C$65536,2,FALSE)) ->  | F34: =IF(D34="",0,VLOOKUP(D34,artikli!$A$2:$C$65536,3,FALSE)) -> 0 | G34: =IF(Podesavanja!B14=1,E34*F34*Podesavanja!B10,E34*F34*Podesavanja!B11) -> 0 | H34: =IF(Podesavanja!B14=1,E34*F34+G34,IF(Podesavanja!B14=2,E34*F34-(E34*F34*Podesavanja!B11))) -> 0 | I34: =IF(Podesavanja!B14=1,E34*F34+G34,IF(Podesavanja!B14=2,E34*F34)) -> 0
C35: =IF(D35="","",VLOOKUP(D35,artikli!$A$2:$C$65536,2,FALSE)) ->  | F35: =IF(D35="",0,VLOOKUP(D35,artikli!$A$2:$C$65536,3,FALSE)) -> 0 | G35: =IF(Podesavanja!B14=1,E35*F35*Podesavanja!B10,E35*F35*Podesavanja!B11) -> 0 | H35: =IF(Podesavanja!B14=1,E35*F35+G35,IF(Podesavanja!B14=2,E35*F35-(E35*F35*Podesavanja!B11))) -> 0 | I35: =IF(Podesavanja!B14=1,E35*F35+G35,IF(Podesavanja!B14=2,E35*F35)) -> 0
C36: =IF(D36="","",VLOOKUP(D36,artikli!$A$2:$C$65536,2,FALSE)) ->  | F36: =IF(D36="",0,VLOOKUP(D36,artikli!$A$2:$C$65536,3,FALSE)) -> 0 | G36: =IF(Podesavanja!B14=1,E36*F36*Podesavanja!B10,E36*F36*Podesavanja!B11) -> 0 | H36: =IF(Podesavanja!B14=1,E36*F36+G36,IF(Podesavanja!B14=2,E36*F36-(E36*F36*Podesavanja!B11))) -> 0 | I36: =IF(Podesavanja!B14=1,E36*F36+G36,IF(Podesavanja!B14=2,E36*F36)) -> 0
C37: =IF(D37="","",VLOOKUP(D37,artikli!$A$2:$C$65536,2,FALSE)) ->  | F37: =IF(D37="",0,VLOOKUP(D37,artikli!$A$2:$C$65536,3,FALSE)) -> 0 | G37: =IF(Podesavanja!B14=1,E37*F37*Podesavanja!B10,E37*F37*Podesavanja!B11) -> 0 | H37: =IF(Podesavanja!B14=1,E37*F37+G37,IF(Podesavanja!B14=2,E37*F37-(E37*F37*Podesavanja!B11))) -> 0 | I37: =IF(Podesavanja!B14=1,E37*F37+G37,IF(Podesavanja!B14=2,E37*F37)) -> 0
H38: Ukupno bez PDV | I38: =IF(Podesavanja!B14=1,E25*F25+E26*F26+E27*F27+E28*F28+E29*F29+E30*F30+E31*F31+E32*F32+E33*F33+E34*F34+E35*F35+E36*F36+E37*F37,IF(Podesavanja!B14=2,SUM(H25:H37))) -> 180
G39: PDV | H39: =Podesavanja!B10 -> 0.17 | I39: =SUM(G25:G37) -> 30.6
C40: Slovima: | H40: UKUPNO SA PDV | I40: =I38+I39 -> 210.6
C41: =Slovima(I40) -> dvijestotinedeset KM i 60 pf.
B44: Poziv na broj za plaćanje: | H44: =RIGHT(E19,4) -> -
B47: Fakturirao: | E47: MP. | H47: Direktor:
B49: ..........................

Sheet artikli
A1: Šifra | B1: Naziv | C1: Cena
A2: 11 | B2: Jabuka | C2: 100
A3: 22 | B3: Kruška | C3: 180
A4: 33 | B4: Šlijva | C4: 160
A5: 44 | B5: Kajsija | C5: 200

Sheet kupci
A1: Rbr | B1: Naziv | C1: PDV BROJ | D1: Adresa | E1: Grad | F1: Tel | G1: Fax
A2: 1 | B2: PROBNI KUPAC | C2: 123456789 | D2: Gore Dole | E2: NEKI GRAD | F2: 0038730256457 | G2: 00387653154
A3: =A2+1 -> 2
A4: =A3+1 -> 3
A5: 4
A6: 5
A7: 6
A8: 7
A9: 8
A10: 9
A11: 10
A12: 11
A13: 12
A14: 13
A15: 14
A16: 15
A17: 16
A18: 17
A19: 18
A20: 19
A21: 20
A22: 21
A23: 22
A24: 23
A25: 24
A26: 25
A27: 26
A28: 27
A29: 28
A30: 29
A31: 30
A32: 31
A33: 32
A34: 33
A35: 34
A36: 35
A37: 36
A38: 37
A39: 38
A40: 39
A41: 40
A42: 41
A43: 42
A44: 43
A45: 44
A46: 45
A47: 46
A48: 47
A49: 48
A50: 49
A51: 50
A52: 51
A53: 52
A54: 53
A55: 54
A56: 55
A57: 56
A58: 57
A59: 58
A60: 59
A61: 60
A62: 61
A63: 62
A64: 63
A65: 64
A66: 65
A67: 66
A68: =A67+1 -> 67
A69: 68
A70: 69
A71: 70
A72: 71
A73: 72
A74: 73
A75: 74
A76: 75
A77: 76
A78: 77
A79: 78
A80: 79
A81: 80
A82: 81
A83: 82
A84: 83
A85: 84
A86: 85
A87: 86
A88: 87
A89: 88
A90: 89
A91: 90
A92: 91
A93: 92
A94: 93
A95: 94
A96: 95
A97: 96
A98: 97
A99: 98
A100: 99
A101: 100
A102: 101
A103: 102
A104: 103
A105: 104
A106: 105
A107: 106
A108: 107
A109: 108
A110: 109
A111: 110
A112: 111
A113: 112
A114: 113
A115: 114
A116: 115
A117: 116
A118: 117
A119: 118
A120: 119
A121: 120
A122: 121
A123: 122
A124: 123
A125: 124
A126: 125
A127: 126
A128: 127
A129: 128
A130: 129
A131: 130
A132: =A131+1 -> 131
A133: 132
A134: 133
A135: 134
A136: 135
A137: 136
A138: 137
A139: 138
A140: 139
A141: 140
A142: 141
A143: 142
A144: 143
A145: 144
A146: 145
A147: 146
A148: 147
A149: 148
A150: 149
A151: 150
A152: 151
A153: 152
A154: 153
A155: 154
A156: 155
A157: 156
A158: 157
A159: 158
A160: 159
A161: 160
A162: 161
A163: 162
A164: 163
A165: 164
A166: 165
A167: 166
A168: 167
A169: 168
A170: 169
A171: 170
A172: 171
A173: 172
A174: 173
A175: 174
A176: 175
A177: 176
A178: 177
A179: 178
A180: 179
A181: 180
A182: 181
A183: 182
A184: 183
A185: 184
A186: 185
A187: 186
A188: 187
A189: 188
A190: 189
A191: 190
A192: 191
A193: 192
A194: 193
A195: 194
A196: =A195+1 -> 195
A197: 196
A198: 197
A199: 198
A200: 199
... 803 more rows

Sheet baza
A1: Datum fakture | B1: Broj fakture | C1: Komitent | D1: Ukupan iznos bez PDV | E1: PDV | F1: Ukupan iznos sa PDV | H1: REKAPITULACIJA PDV
H3: Ukupan iznos bez PDV | I3: =SUM(D2:D2000) -> 0
H5: PDV | I5: =SUM(E2:E2000) -> 0
H7: Ukupan iznos sa PDV | I7: =SUM(F2:F2000) -> 0

Sheet Podesavanja
B1: OSNOVNA PODEŠAVANJA ZA ISPRAVAN RAD PROGRAMA
A2: Naziv firme: | B2: MOJA FIRMA
A3: Adresa: | B3: Moja ulica bb
A4: Mjesto: | B4: Moj Grad
A5: PDV: | B5: 123123123123
A6: Matični broj: | B6: 98765432112
A7: Tekući račun: | B7: 12345654879
A8: Tel/fax: | B8: 0038733256987
B9: OBAVEZNA POPUNA PODATAKA
A10: Stopa PDV % | B10: 0.17 | C10: UPIS STOPE PDV JE OBAVEZNA STAVKA.
A11: Preračunata stopa PDV | B11: 0.145299 | C11: UPIS PRERAČUNATE STOPE PDV,KADA JE U CIJENU USLUGE/ROBE URAČUNAT PDV.
A12: Datum dospijeća: | B12: 10 | C12: UPIS DATUMA DOSPIJEĆA RAČUNA OBAVEZNA STAVKA.
A13: Način plačanja | B13: Virman | C13: Odabir vrste načina plačanja,odabir se vrši iz padajuće liste.
A14: Odabir stope PDV | B14: 1 | C14: Odabir PDV odabir se vrši iz padajuće liste,opcija 1-cijena usluge + PDV i opcija 2-PDV je uračunat u cijenu.
B15: =IF(B14=1,"PROPISANA STOPA PDV","PRERAČUNATA STOPA PDV") -> PROPISANA STOPA PDV
A17: Početni broj fakture: | B17: 1 | C17: Upis početnog broja fakture.
A21: Stupci i čelije koje su obojani ovom bojom na fakturi one se ne popunjavaju !!!! | D21: Program za Fakturisanje verzija 3.0.0
A22: automatska je popuna podataka!!!!!! | D22: program by Jasmin info:jasko@inbox.com tel:++387 61 240 653
F23: info: jasminj.info@gmail.com
A24: Čelije obojene ovom bojom na fakturi i na podešavanjima,tu imate opciju odabira pomoću padajuće liste.
A26: Fakture se štampaju crno-bijelo,ali vi to možete promijeniti u podešavanju štampe.

Sheet pomoc
B11: DOBRO DOŠLI U PROGRAM ZA FAKTURISANJE Verzija 1.5.0
B14: Za korištenje programa fakturisanje trebate uraditi par koraka i program će raditi funkcionalno.
B15: Program kopirati na Lokalni disk C, i program pokretati sa prečice na desktopu.
A19: 1. | B19: SNIMANJE FAKTURE
B20: Ovo kontrolno dugme snima fakturu sa svim elementima na lokalni disk C:
B21: snima osnovne podatke o datumu fakture,komitentu,broju fakture itd u bazu
B22: za brzi pregled izdatih faktura,i briše sve stavke za novu fakturu
A23: 2. | B23: KOMITENTI
B24: Unosite komitente za bržu popunu podataka za fakturu odabirom šifre iz padajuće liste
A25: 3. | B25: PODEŠAVANJA
B26: Osnovni podaci za ispravan rad programa.
A27: 4. | B27: LOGO
B28: Ova opcija omogučava da unesete svoj vlastiti LOGO firme.Dimenzije vašeg Logo moraju biti Height (visina) = 80 i Width(dužina) = 280 .
A30: 5. | B30: IZBOR ŠTAMPAČA
B31: Izbor štampača (printera) ako imate više instalisani štampaća (printera)
B32: POGLEDAJ RAČUN
B33: Sa ovom opcijom pregledate račun prije štampanja(printanja)
B34: PRINTANJE
B35: Printa fakturu na glavni štampač
A36: 6. | B36: BAZA FAKTURA
B37: Ovdje imate pregled svih snimljeni faktura sa osnovnim elementima
B40: SVE SNIMLJENE FAKTURE ĆE SE NALAZITI NA LOKALNOM DISKU C:, U MAPI FAKTURA,KOJE OTVARATE I ŠTAMPATE SA EXCELOVIM KOMANDNIM DUGMADIMA
B41: KAD ZAVRŠITE SA PROGRAM ZA IZLAZ IZ PROGRAMA KORISTITE DUGME IZLAZ U PROGRAMU FAKTURA JER SPREMA SVE POSTAVKE.
C46: UGODAN RAD SA PROGRAMOM
